fUST/lending_fUST_20240516
["ID","MTS","AMOUNT","RATE_DAILY","PERIOD"]
[327150116,1715855246199,-2405.62,0.00016989,2]
[327150117,1715855246218,-500.0,0.00016989,2]
[327150118,1715855246237,-500.0,0.00016989,2]
[327150119,1715855246258,-1888.78,0.00016989,2]
[327150120,1715855246277,-1262.78,0.00016989,2]
[327150121,1715855246310,-1070.39,0.00016989,2]
[327150122,1715855246332,-2717.1,0.00016989,2]
[327150123,1715855246353,-3504.93,0.00016989,2]
[327150124,1715855246376,-3481.98,0.00016989,2]
[327150125,1715855246399,-421.04145104,0.00016989,2]
[327150157,1715855433877,-666.59312909,0.00016889,2]
[327150158,1715855433887,-699.15854896,0.00016989,2]
[327150159,1715855433897,-924.43,0.00016989,2]
[327150160,1715855433907,-573.41,0.00016989,2]
[327150161,1715855433916,-500.0,0.00016989,2]
[327150162,1715855433928,-5116.99,0.00016989,2]
[327150163,1715855433937,-500.0,0.00016989,2]
[327150164,1715855433948,-919.74,0.00016989,2]
[327150165,1715855433957,-500.0,0.00016989,2]
[327150166,1715855433966,-1598.23,0.00016989,2]
[327150167,1715855433976,-500.0,0.00016989,2]
[327150168,1715855433992,-500.0,0.00016989,2]
[327150169,1715855434002,-500.0,0.00016989,2]
[327150170,1715855434013,-693.59,0.00016989,2]
[327150171,1715855434022,-17566.25,0.00016989,2]
[327150172,1715855434033,-555.92,0.00016989,2]
[327150173,1715855434042,-264.70284205,0.00016989,2]
[327150174,1715855434052,-3313.25,0.00016989,2]
[327150175,1715855434062,-515.52,0.00016989,2]
[327150176,1715855434074,-2453.59,0.00016989,2]
[327150177,1715855434083,-8079.87,0.00016989,2]
[327150178,1715855434095,-500.0,0.00016989,2]
[327150179,1715855434105,-238.02687362,0.00016989,2]
[327150180,1715855434115,-153.1223629,0.00016989,2]
[327150181,1715855434125,-500.0,0.00016989,2]
[327150182,1715855434135,-600.53,0.00016989,2]
[327150183,1715855434144,-773.43,0.00016989,2]
[327150184,1715855434155,-1111.25,0.00016989,2]
[327150185,1715855434166,-3566.11119952,0.00016989,2]
[327150202,1715855438526,-1497.5,0.00016989,2]
[327150205,1715855438538,-1316.4958439,0.00016989,2]
[327150207,1715855438550,-6223.69295658,0.00016989,2]
[327150209,1715855438559,-2305.38,0.00016989,2]
[327150211,1715855438568,-500.0,0.00016989,2]
[327150213,1715855438578,-500.0,0.00016989,2]
[327150215,1715855438587,-500.0,0.00016989,2]
[327150217,1715855438597,-500.0,0.00016989,2]
[327150219,1715855438605,-694.2,0.00016989,2]
[327150221,1715855438614,-2219.93,0.00016989,2]
[327150223,1715855438624,-1810.08,0.00016989,2]
[327150225,1715855438633,-1251.83,0.00016989,2]
[327150227,1715855438641,-1066.71,0.00016989,2]
[327150229,1715855438651,-1025.79,0.00016989,2]
[327150230,1715855438659,-3553.73,0.00016989,2]
[327150233,1715855438669,-1022.35,0.00016989,2]
[327150235,1715855438679,-13075.94987824,0.0001699,3]
[327150318,1715855444401,-2603.89,0.00016989,2]
[327150319,1715855444412,-2603.89,0.00016989,2]
[327150320,1715855444422,-2603.89,0.00016989,2]
[327150321,1715855444432,-500.0,0.00016989,2]
[327150322,1715855444443,-500.0,0.00016989,2]
[327150323,1715855444453,-1917.86915653,0.0001699,3]
[327150375,1715855978989,637.9026,0.00015988,2]
[327150383,1715856340128,-416.87621729,0.00016759,2]
[327150384,1715856340150,-299.74248481,0.00016827,2]
[327150385,1715856340170,-583.26898791,0.00016887,2]
[327150386,1715856340190,-498.542,0.00016986,2]
[327150387,1715856340210,-312.9830872,0.00016986,2]
[327150388,1715856340231,-532.75,0.00016986,2]
[327150389,1715856340253,-575.51,0.00016986,2]
[327150390,1715856340273,-500.0,0.00016986,2]
[327150391,1715856340294,-230.0349782,0.00016987,2]
[327150392,1715856340315,-1270.0,0.00016987,2]
[327150393,1715856340334,-500.0,0.00016987,2]
[327150394,1715856340355,-1022.26,0.00016987,2]
[327150395,1715856340375,-2121.73,0.00016987,2]
[327150396,1715856340396,-500.0,0.00016987,2]
[327150397,1715856340417,-695.3,0.00016987,2]
[327150398,1715856340437,-500.0,0.00016987,2]
[327150399,1715856340456,-500.0,0.00016987,2]
[327150400,1715856340476,-581.85,0.00016987,2]
[327150401,1715856340496,-397.36139608,0.00016987,2]
[327150402,1715856340516,-500.0,0.00016987,2]
[327150403,1715856340537,-307.33839592,0.00016987,2]
[327150409,1715856414658,266.24747653,9.9e-05,2]
[327150480,1715856632717,-510.36036443,0.00016886,2]
[327150482,1715856632727,-979.76,0.00016986,2]
[327150484,1715856632737,-183.4091354,0.00016986,2]
[327150486,1715856632746,-500.0,0.00016986,2]
[327150488,1715856632755,-500.0,0.00016986,2]
[327150490,1715856632764,-1972.92,0.00016986,2]
[327150492,1715856632774,-3535.93,0.00016986,2]
[327150494,1715856632783,-500.0,0.00016986,2]
[327150496,1715856632792,-483.46063923,0.00016986,2]
[327150498,1715856632802,-500.0,0.00016986,2]
[327150500,1715856632811,-1073.52,0.00016986,2]
[327150502,1715856632820,-515.82,0.00016986,2]
[327150504,1715856632829,-908.65,0.00016986,2]
[327150506,1715856632838,-969.26,0.00016986,2]
[327150508,1715856632847,-534.10901636,0.00016986,2]
[327150510,1715856632856,-500.0,0.00016986,2]
[327150512,1715856632865,-500.0,0.00016986,2]
[327150514,1715856632873,-625.91,0.00016986,2]
[327150516,1715856632882,-568.57,0.00016986,2]
[327150518,1715856632891,-549.51,0.00016986,2]
[327150520,1715856632900,-500.0,0.00016986,2]
[327150522,1715856632909,-4903.78,0.00016986,2]
[327150524,1715856632918,-500.0,0.00016986,2]
[327150526,1715856632927,-500.0,0.00016986,2]
[327150528,1715856632935,-510.55,0.00016986,2]
[327150529,1715856632944,-634.38,0.00016986,2]
[327150532,1715856632953,-881.42,0.00016986,2]
[327150533,1715856632963,-603.44,0.00016986,2]
[327150535,1715856632972,-500.0,0.00016986,2]
[327150537,1715856632980,-500.0,0.00016986,2]
[327150539,1715856632990,-500.0,0.00016986,2]
[327150541,1715856632998,-500.0,0.00016986,2]
[327150543,1715856633007,-949.3,0.00016986,2]
[327150545,1715856633016,-2351.36,0.00016986,2]
[327150547,1715856633025,-500.0,0.00016986,2]
[327150549,1715856633035,-500.0,0.00016986,2]
[327150551,1715856633045,-17729.29,0.00016986,2]
[327150553,1715856633056,-500.0,0.00016986,2]
[327150555,1715856633066,-817.23,0.00016986,2]
[327150557,1715856633075,-500.0,0.00016986,2]
[327150559,1715856633085,-500.0,0.00016986,2]
[327150561,1715856633095,-723.7,0.00016986,2]
[327150563,1715856633105,-551.53,0.00016986,2]
[327150565,1715856633114,-6420.15,0.00016986,2]
[327150568,1715856633124,-814.86,0.00016986,2]
[327150569,1715856633133,-6678.18,0.00016986,2]
[327150571,1715856633143,-500.0,0.00016986,2]
[327150573,1715856633152,-3618.46941557,0.00016986,2]
[327150695,1715856638896,-1000.49664237,0.00016986,2]
[327150700,1715856638908,-333.07915624,0.00016986,2]
[327150924,1715856641148,-7126.60478582,0.00016986,2]
[327150926,1715856641158,-500.0,0.00016986,2]
[327150928,1715856641168,-546.12,0.00016986,2]
[327150930,1715856641178,-2332.2,0.00016986,2]
[327150932,1715856641189,-500.0,0.00016986,2]
[327150934,1715856641198,-2127.43,0.00016986,2]
[327150936,1715856641207,-500.0,0.00016986,2]
[327150938,1715856641216,-1734.66,0.00016986,2]
[327150940,1715856641226,-227.38964441,0.00016986,2]
[327150942,1715856641235,-598.28908808,0.00016986,2]
[327150944,1715856641244,-500.0,0.00016986,2]
[327150946,1715856641253,-500.0,0.00016986,2]
[327150948,1715856641263,-500.0,0.00016986,2]
[327150950,1715856641273,-500.0,0.00016986,2]
[327150952,1715856641282,-500.0,0.00016986,2]
[327150954,1715856641291,-1037.02,0.00016986,2]
[327150956,1715856641300,-816.24,0.00016986,2]
[327150958,1715856641315,-500.0,0.00016986,2]
[327150960,1715856641324,-851.88,0.00016986,2]
[327150962,1715856641333,-520.75694388,0.00016986,2]
[327150964,1715856641343,-1275.85,0.00016986,2]
[327150966,1715856641355,-649.98,0.00016986,2]
[327150968,1715856641364,-458.32314637,0.00016986,2]
[327151077,1715856644384,-41.67685363,0.00016986,2]
[327151078,1715856644396,-500.0,0.00016986,2]
[327151079,1715856644406,-3132.14,0.00016986,2]
[327151080,1715856644415,-3132.14,0.00016986,2]
[327151081,1715856644425,-3132.14,0.00016986,2]
[327151082,1715856644434,-1219.94,0.00016986,2]
[327151083,1715856644443,-683.48,0.00016986,2]
[327151084,1715856644452,-1199.67,0.00016986,2]
[327151085,1715856644462,-3336.9,0.00016986,2]
[327151086,1715856644471,-840.35350004,0.00016987,3]
[327151119,1715857250980,2855.0,0.000267,120]
[327151121,1715857538174,-416.87621729,0.00016965,2]
[327151122,1715857538195,-615.02395643,0.0001698,2]
[327151123,1715857538217,-2253.39,0.00016983,2]
[327151124,1715857538237,-1822.90962841,0.00016984,3]
[327151125,1715857538257,-411.84503994,0.00016984,2]
[327151126,1715857538278,-500.0,0.00016984,2]
[327151127,1715857538300,-944.18,0.00016984,2]
[327151128,1715857538320,-938.93,0.00016984,2]
[327151129,1715857538341,-500.0,0.00016984,2]
[327151130,1715857538364,-2033.32,0.00016984,2]
[327151131,1715857538385,-500.0,0.00016984,2]
[327151132,1715857538409,-500.0,0.00016984,2]
[327151133,1715857538430,-666.33,0.00016984,2]
[327151134,1715857538451,-693.77,0.00016984,2]
[327151135,1715857538470,-500.0,0.00016984,2]
[327151136,1715857538491,-2050.95,0.00016984,2]
[327151137,1715857538512,-780.91,0.00016984,2]
[327151138,1715857538533,-500.0,0.00016984,2]
[327151139,1715857538554,-500.0,0.00016984,2]
[327151140,1715857538581,-7958.89267965,0.00016984,2]
[327151446,1715857840363,-239.79398785,0.00016824,2]
[327151447,1715857840373,-154.58228553,0.00016983,2]
[327151744,1715857843612,-3043.27771447,0.00016983,2]
[327151746,1715857843622,-885.91,0.00016983,2]
[327151748,1715857843631,-500.0,0.00016983,2]
[327151750,1715857843641,-500.0,0.00016983,2]
[327151752,1715857843652,-519.35,0.00016983,2]
[327151754,1715857843663,-500.0,0.00016983,2]
[327151755,1715857843672,-500.0,0.00016983,2]
[327151756,1715857843682,-2159.5,0.00016983,2]
[327151757,1715857843691,-1531.64,0.00016983,2]
[327151758,1715857843700,-500.0,0.00016983,2]
[327151759,1715857843709,-664.69,0.00016983,2]
[327151760,1715857843718,-528.55,0.00016983,2]
[327151761,1715857843728,-748.37,0.00016983,2]
[327151762,1715857843737,-500.0,0.00016983,2]
[327151763,1715857843746,-6390.80105047,0.00016983,2]
[327151816,1715857844328,-4852.94894953,0.00016983,2]
[327151818,1715857844337,-500.0,0.00016983,2]
[327151821,1715857844347,-1839.71700204,0.00016983,2]
[327152139,1715857966355,154.79876161,9.999e-05,2]
[327152141,1715858126736,3000.0,0.00016,2]
[327152142,1715858167841,3000.0,0.00016,2]
[327152143,1715858192172,3000.0,0.00016,2]
[327152144,1715858200387,3000.0,0.00016,2]
[327152145,1715858205843,-191.83519028,0.00016819,2]
[327152147,1715858219795,1504.96480972,0.00016,2]
[327152148,1715858219820,1495.03519028,0.00016,2]
[327152149,1715858258554,3000.0,0.00016,2]
[327152150,1715858277544,3000.0,0.00016,2]
[327152151,1715858281206,-911.45481421,0.00016983,3]
[327152152,1715858281241,-13536.02437312,0.00016983,3]
[327152153,1715858281308,-500.0,0.00016984,4]
[327152154,1715858302507,3000.0,0.00016,2]
[327152155,1715858311704,455.72740711,0.00016983,3]
[327152156,1715858334763,3000.0,0.00016,2]
[327152157,1715858347956,-416.87621729,0.00016782,2]
[327152158,1715858347989,-2145.49260702,0.0001688,2]
[327152159,1715858348022,-13890.69406969,0.00016881,2]
[327152160,1715858348072,-14878.45091899,0.00016883,2]
[327152161,1715858348112,-155.0826448,0.00016981,2]
[327152162,1715858348146,-525.30137606,0.00016982,2]
[327152163,1715858348182,-500.0,0.00016982,2]
[327152164,1715858348217,-500.0,0.00016982,2]
[327152165,1715858348252,-899.81,0.00016982,2]
[327152166,1715858348287,-500.0,0.00016982,2]
[327152167,1715858348323,-500.0,0.00016982,2]
[327152168,1715858348358,-2173.29,0.00016982,2]
[327152169,1715858348391,-500.0,0.00016982,2]
[327152170,1715858348427,-185.74490146,0.00016982,2]
[327152171,1715858348459,-1980.22,0.00016982,2]
[327152172,1715858358869,4283.69366107,0.0002,10]
[327152173,1715858361866,-2050.96330563,0.00016981,2]
[327152174,1715858361900,-1117.80164826,0.00016981,2]
[327152175,1715858361932,-500.0,0.00016982,2]
[327152176,1715858362143,-500.0,0.00016982,2]
[327152177,1715858362199,-500.0,0.00016982,2]
[327152178,1715858362232,-912.02,0.00016982,2]
[327152179,1715858362266,-500.0,0.00016982,2]
[327152180,1715858362300,-532.26,0.00016982,2]
[327152181,1715858362335,-717.19,0.00016982,2]
[327152182,1715858362366,-517.72,0.00016982,2]
[327152183,1715858362398,-928.87,0.00016982,2]
[327152184,1715858362429,-500.0,0.00016982,2]
[327152185,1715858362462,-10775.26,0.00016982,2]
[327152186,1715858362494,-436.55677437,0.00016982,2]
[327152187,1715858362525,-574.69,0.00016982,2]
[327152188,1715858362558,-2158.37,0.00016982,2]
[327152189,1715858362592,-500.0,0.00016982,2]
[327152190,1715858362626,-580.02,0.00016982,2]
[327152191,1715858362658,-500.0,0.00016982,2]
[327152192,1715858362693,-500.0,0.00016982,2]
[327152193,1715858362727,-1662.38,0.00016982,2]
[327152194,1715858362764,-2038.79,0.00016982,2]
[327152195,1715858362797,-636.73,0.00016982,2]
[327152196,1715858362835,-500.0,0.00016982,2]
[327152197,1715858362868,-500.0,0.00016982,2]
[327152198,1715858362900,-500.0,0.00016982,2]
[327152199,1715858362933,-993.81,0.00016982,2]
[327152200,1715858362966,-500.0,0.00016982,2]
[327152201,1715858363001,-2740.63,0.00016982,2]
[327152202,1715858363035,-2740.63,0.00016982,2]
[327152203,1715858363070,-1029.98654348,0.00016982,2]
[327152204,1715858365320,2434.1394154,0.00016,2]
[327152205,1715858371990,6768.01218656,0.00016983,3]
[327152206,1715858372092,227.86370355,0.00016983,3]
[327152207,1715858374800,4283.69366107,0.0002,10]
[327152208,1715858387762,273.37336231,9.9e-05,2]
[327152209,1715858392936,4283.69366107,0.0002,10]
[327152210,1715858395814,273.37336231,9.9e-05,2]
[327152211,1715858404854,273.37336231,9.9e-05,2]
[327152212,1715858410806,4283.69366107,0.0002,10]
[327152213,1715858414072,273.37336231,9.9e-05,2]
[327152214,1715858422953,273.37336231,9.9e-05,2]
[327152215,1715858428809,4283.69366107,0.0002,10]
[327152216,1715858431097,273.37336231,9.9e-05,2]
[327152217,1715858441550,273.37336231,9.9e-05,2]
[327152218,1715858450286,273.37336231,9.9e-05,2]
[327152219,1715858454804,3615.81118032,0.0002,10]
[327152220,1715858458887,273.37336231,9.9e-05,2]
[327152221,1715858468193,273.37336231,9.9e-05,2]
[327152222,1715858476812,273.37336231,9.9e-05,2]
[327152223,1715858484851,273.37336231,9.9e-05,2]
[327152224,1715858493266,273.37336231,9.9e-05,2]
[327152225,1715858501912,273.37336231,9.9e-05,2]
[327152226,1715858511336,273.37336231,9.9e-05,2]
[327152227,1715858520225,273.37336231,9.9e-05,2]
[327152228,1715858529357,273.37336231,9.9e-05,2]
[327152229,1715858537426,273.37336231,9.9e-05,2]
[327152230,1715858545969,273.37336231,9.9e-05,2]
[327152231,1715858554854,273.37336231,9.9e-05,2]
[327152232,1715858564879,273.37336231,9.9e-05,2]
[327152233,1715858573388,273.37336231,9.9e-05,2]
[327152234,1715858581929,273.37336231,9.9e-05,2]
[327152235,1715858590768,273.37336231,9.9e-05,2]
[327152236,1715858599878,273.37336231,9.9e-05,2]
[327152237,1715858608006,273.37336231,9.9e-05,2]
[327152238,1715858617613,273.37336231,9.9e-05,2]
[327152239,1715858625924,273.37336231,9.9e-05,2]
[327152240,1715858634745,273.37336231,9.9e-05,2]
[327152241,1715858642878,273.37336231,9.9e-05,2]
[327152242,1715858651316,273.37336231,9.9e-05,2]
[327152243,1715858651887,418.1356697,0.00015984,2]
[327152244,1715858660225,273.37336231,9.9e-05,2]
[327152245,1715858669684,273.37336231,9.9e-05,2]
[327152246,1715858679106,273.37336231,9.9e-05,2]
[327152247,1715858688110,273.37336231,9.9e-05,2]
[327152248,1715858697550,273.37336231,9.9e-05,2]
[327152249,1715858706695,273.37336231,9.9e-05,2]
[327152250,1715858714696,273.37336231,9.9e-05,2]
[327152251,1715858723408,273.37336231,9.9e-05,2]
[327152252,1715858732823,273.37336231,9.9e-05,2]
[327152254,1715858741769,273.37336231,9.9e-05,2]
[327152255,1715858750010,273.37336231,9.9e-05,2]
[327152256,1715858750139,-1117.80164826,0.00016981,2]
[327152257,1715858750159,-1997.1914164,0.00016981,2]
[327152258,1715858750178,-1953.84,0.00016981,2]
[327152259,1715858750200,-1593.12,0.00016981,2]
[327152260,1715858750220,-952.41,0.00016981,2]
[327152261,1715858750240,-1222.69,0.00016981,2]
[327152262,1715858750262,-1100.50352763,0.00016981,2]
[327152263,1715858758915,273.37336231,9.9e-05,2]
[327152264,1715858767660,273.37336231,9.9e-05,2]
[327152265,1715858777130,273.37336231,9.9e-05,2]
[327152266,1715858787175,273.37336231,9.9e-05,2]
[327152267,1715858796439,273.37336231,9.9e-05,2]
[327152268,1715858804414,273.37336231,9.9e-05,2]
[327152269,1715858812795,273.37336231,9.9e-05,2]
[327152270,1715858823589,273.37336231,9.9e-05,2]
[327152271,1715858832142,-532.39916493,0.00016468,2]
[327152272,1715858832163,-816.96735563,0.00016881,2]
[327152273,1715858832185,-1117.80164826,0.0001698,2]
[327152274,1715858832207,-3388.6,0.00016981,2]
[327152275,1715858832234,-1028.79,0.00016981,2]
[327152276,1715858832257,-500.0,0.00016981,2]
[327152277,1715858832282,-562.49900937,0.00016981,2]
[327152278,1715858832305,-526.62,0.00016981,2]
[327152279,1715858832328,-500.0,0.00016981,2]
[327152280,1715858832350,-2349.73,0.00016981,2]
[327152281,1715858832375,-1467.82,0.00016981,2]
[327152282,1715858832397,-844.7,0.00016981,2]
[327152283,1715858832418,-500.0,0.00016981,2]
[327152284,1715858832439,-637.0,0.00016981,2]
[327152285,1715858832460,-500.0,0.00016981,2]
[327152286,1715858832482,-500.0,0.00016981,2]
[327152287,1715858832504,-10359.42941175,0.00016981,2]
[327152288,1715858833261,273.37336231,9.9e-05,2]
[327152289,1715858841987,273.37336231,9.9e-05,2]
[327152290,1715858850403,273.37336231,9.9e-05,2]
[327152291,1715858859927,273.37336231,9.9e-05,2]
[327152292,1715858868050,273.37336231,9.9e-05,2]
[327152293,1715858877590,273.37336231,9.9e-05,2]
[327152294,1715858885956,273.37336231,9.9e-05,2]
[327152295,1715858886025,771.54346907,0.00015281,2]
[327152296,1715858889340,1906.8291724,0.00015983,2]
[327152297,1715858894842,273.37336231,9.9e-05,2]
[327152298,1715858903421,273.37336231,9.9e-05,2]
[327152299,1715858903947,775.86638586,0.00015281,2]
[327152300,1715858913153,273.37336231,9.9e-05,2]
[327152301,1715858922238,273.37336231,9.9e-05,2]
[327152302,1715858926042,2596.45823948,9.999e-05,2]
[327152303,1715858931639,273.37336231,9.9e-05,2]
[327152304,1715858941553,273.37336231,9.9e-05,2]
[327152305,1715858950054,273.37336231,9.9e-05,2]
[327152306,1715858958344,273.37336231,9.9e-05,2]
[327152307,1715858967446,273.37336231,9.9e-05,2]
[327152308,1715858975621,273.37336231,9.9e-05,2]
[327152347,1715859032476,-730.49997261,0.00016368,2]
[327152348,1715859032485,-1117.80164826,0.0001688,2]
[327152349,1715859032495,-201.84766335,0.00016881,2]
[327152350,1715859032504,-201.84766332,0.00016881,2]
[327152351,1715859032513,-201.84766332,0.00016882,2]
[327152352,1715859032522,-201.84766332,0.00016882,2]
[327152353,1715859032531,-201.84766332,0.00016882,2]
[327152354,1715859032540,-1341.10054985,0.00016979,2]
[327152355,1715859032550,-2082.73,0.0001698,2]
[327152356,1715859032559,-500.0,0.0001698,2]
[327152357,1715859032569,-687.31,0.0001698,2]
[327152358,1715859032579,-10326.29,0.0001698,2]
[327152359,1715859032589,-2068.44,0.0001698,2]
[327152360,1715859032599,-510.08,0.0001698,2]
[327152361,1715859032609,-1516.79496097,0.0001698,2]
[327152373,1715859040093,-9.94503903,0.0001698,2]
[327152376,1715859040107,-500.0,0.0001698,2]
[327152378,1715859040118,-912.72,0.0001698,2]
[327152379,1715859040129,-500.0,0.0001698,2]
[327152380,1715859040140,-500.0,0.0001698,2]
[327152381,1715859040150,-2423.47,0.0001698,2]
[327152383,1715859040161,-958.66,0.0001698,2]
[327152385,1715859040171,-1872.43,0.0001698,2]
[327152387,1715859040180,-3064.62,0.0001698,2]
[327152389,1715859040190,-500.0,0.0001698,2]
[327152390,1715859040201,-862.32,0.0001698,2]
[327152392,1715859040211,-3384.00609328,0.00016981,3]
[327152394,1715859040222,-227.86370354,0.00016981,3]
[327152395,1715859040232,-470.27180354,0.00016981,2]
[327152396,1715859040242,-1171.75,0.00016981,2]
[327152397,1715859040252,-1149.68,0.00016981,2]
[327152398,1715859040263,-500.0,0.00016981,2]
[327152399,1715859040273,-500.0,0.00016981,2]
[327152400,1715859040284,-3405.66,0.00016981,2]
[327152401,1715859040295,-849.0,0.00016981,2]
[327152402,1715859040307,-6184.74071041,0.00016981,2]
[327152488,1715859043806,-1104.1729547,0.00016981,2]
[327152489,1715859044029,-270.33633489,0.00016981,2]
[327152490,1715859044039,-3247.41,0.00016981,2]
[327152491,1715859044048,-892.04,0.00016981,2]
[327152492,1715859044058,-500.0,0.00016981,2]
[327152493,1715859044069,-985.93,0.00016981,2]
[327152494,1715859044079,-6589.75,0.00016981,2]
[327152495,1715859044088,-500.0,0.00016981,2]
[327152496,1715859044101,-1091.03,0.00016981,2]
[327152497,1715859044110,-500.0,0.00016981,2]
[327152498,1715859044119,-526.52,0.00016981,2]
[327152499,1715859044129,-1406.66,0.00016981,2]
[327152500,1715859044138,-1348.57,0.00016981,2]
[327152501,1715859044147,-607.06,0.00016981,2]
[327152502,1715859044156,-504.67,0.00016981,2]
[327152503,1715859044166,-500.0,0.00016981,2]
[327152504,1715859044175,-3556.7,0.00016981,2]
[327152505,1715859044184,-500.0,0.00016981,2]
[327152506,1715859044196,-2251.82,0.00016981,2]
[327152507,1715859044205,-1389.31,0.00016981,2]
[327152508,1715859044214,-610.46,0.00016981,2]
[327152509,1715859044224,-809.5,0.00016981,2]
[327152510,1715859044234,-2858.47690574,0.00016981,2]
[327152522,1715859053592,205.026508,0.00015983,2]
[327152523,1715859070651,2794.36081575,0.00015,2]
[327152524,1715859095704,154.79876161,9.999e-05,2]
[327152525,1715859099369,513.28860101,9.999e-05,2]
[327152528,1715859135299,261.02399172,9.999e-05,2]
[327152529,1715859140029,24900.0,0.0001598,2]
[327152534,1715859252544,-453.2001,0.00016875,2]
[327152535,1715859339744,283.5045588,0.000137,2]
[327152536,1715859420469,4911.31913878,0.000125,2]
[327152537,1715859441338,1130.3885387,0.00015648,2]
[327152538,1715859441899,691.8950174,0.00015773,2]
[327152540,1715859601972,585.15051404,9.999e-05,2]
[327152541,1715859655194,3578.7041876,0.00015712,2]
[327152543,1715859798881,261.02399172,9.999e-05,2]
[327152544,1715859845611,283.5045588,0.00016,2]
[327152545,1715859863016,1117.80164826,9.999e-05,2]
[327152546,1715859900016,315.1407731,0.00015934,2]
[327152548,1715860027140,-1117.80164826,0.00016433,2]
[327152549,1715860027161,-283.5045588,0.00016434,2]
[327152550,1715860027183,-9395.88876832,0.00016669,2]
[327152551,1715860027203,-416.87621729,0.0001667,2]
[327152552,1715860027227,-2364.100484,0.00016673,2]
[327152553,1715860027250,-153.46815222,0.00016817,2]
[327152554,1715860027270,-13319.63032891,0.00016878,2]
[327152555,1715860027291,-2151.0,0.000169,2]
[327152556,1715860027317,-500.0,0.00016976,2]
[327152557,1715860027339,-500.0,0.00016976,2]
[327152558,1715860027360,-2117.18,0.00016976,2]
[327152559,1715860027381,-500.0,0.00016976,2]
[327152560,1715860027407,-500.0,0.00016976,2]
[327152561,1715860027427,-705.79,0.00016976,2]
[327152562,1715860027447,-500.0,0.00016976,2]
[327152563,1715860027468,-826.39,0.00016976,2]
[327152564,1715860027489,-7525.83379595,0.00016976,2]
[327152565,1715860045096,-1117.80164826,0.00016975,2]
[327152566,1715860045119,-2814.92417975,0.00016975,2]
[327152567,1715860045144,-1213.43370898,0.00016976,2]
[327152568,1715860069153,5438.73864379,0.000202,9]
[327152596,1715860232239,-283.5045588,0.00016811,2]
[327152598,1715860232250,-153.46815222,0.00016816,2]
[327152600,1715860232259,-1163.9291358,0.00016876,2]
[327152602,1715860232269,-208.95851258,0.00016974,2]
[327152604,1715860232279,-500.0,0.00016975,2]
[327152607,1715860232289,-225.28516085,0.00016975,2]
[327152609,1715860232298,-2028.96,0.00016975,2]
[327152611,1715860232307,-500.0,0.00016975,2]
[327152612,1715860232316,-500.0,0.00016975,2]
[327152615,1715860232326,-676.38,0.00016975,2]
[327152616,1715860232335,-9896.27,0.00016975,2]
[327152619,1715860232345,-2072.19,0.00016975,2]
[327152620,1715860232355,-1879.36,0.00016975,2]
[327152623,1715860232364,-500.0,0.00016976,2]
[327152624,1715860232374,-916.1,0.00016976,2]
[327152626,1715860232388,-1122.93,0.00016976,2]
[327152628,1715860232398,-2683.38,0.00016976,2]
[327152630,1715860232407,-2936.93,0.00016976,2]
[327152632,1715860232416,-500.0,0.00016976,2]
[327152634,1715860232428,-3112.1,0.00016976,2]
[327152636,1715860232437,-1897.71,0.00016976,2]
[327152638,1715860232447,-813.63,0.00016976,2]
[327152640,1715860232456,-500.0,0.00016976,2]
[327152642,1715860232465,-890.17,0.00016976,2]
[327152644,1715860232476,-944.85,0.00016976,2]
[327152646,1715860232486,-500.0,0.00016976,2]
[327152648,1715860232496,-874.02,0.00016976,2]